[Event "XVI Memorial Lezcano Montalvo 2024"]
[Site "Gran Canaria"]
[Date "2024.03.29"]
[Round "7.38"]
[White "Bangiev, Katharina"]
[Black "Fernandez Hernandez, Javier"]
[Result "1-0"]
[ECO "B91"]
[WhiteElo "1779"]
[BlackElo "1690"]
[Annotator "NA RC"]
[PlyCount "67"]
[EventDate "2024.03.23"]
[EventType "swiss"]
[EventCountry "ESP"]
[SourceTitle "playchess.com"]
[Source "ChessBase"]
[SourceQuality "1"]
[TimeControl "5400+30"]

1. e4 {[%emt 0:00:03]} c5 {[%emt 0:04:00]} 2. Nf3 {[%emt 0:00:10]} d6 {[%emt 0:00:04]} 3. d4 {[%emt 0:00:06]} cxd4 {[%emt 0:00:03]} 4. Nxd4 {[%emt 0:00:06]} Nf6 {[%emt 0:00:07]} 5. Nc3 {[%emt 0:00:26]} a6 {[%emt 0:00:04]} 6. g3 {[%emt 0:01:48]} g6 {[%emt 0:05:06]} 7. Bg2 {[%emt 0:00:15]} Bg7 {[%emt 0:00:08]} 8. O-O {[%emt 0:00:51]} O-O {[%emt 0:00:04]} 9. h3 {[%emt 0:00:28]} Nbd7 {[%emt 0:07:26]} 10. a4 {[%emt 0:03:33]} Rb8 {[%emt 0:02:11]} 11. Be3 {[%emt 0:02:05]} Ne5 {[%emt 0:00:41]} 12. b3 {[%emt 0:12:12]} Bd7 {[%emt 0:01:02]} 13. f4 {[%emt 0:01:58]} Nc6 {[%emt 0:00:10]} 14. Nde2 {[%emt 0:07:15]} Qc8 {[%emt 0:13:10]} 15. Kh2 {[%emt 0:11:28]} b5 {[%emt 0:10:16]} 16. axb5 {[%emt 0:04:07]} axb5 {[%emt 0:00:06]} 17. Nd5 {[%emt 0:11:04]} Nxd5 {[%emt 0:00:17]} 18. exd5 {[%emt 0:00:15]} Nb4 {[%emt 0:00:19]} 19. c3 {[%emt 0:03:42]} Na6 {[%emt 0:00:46]} 20. Bd4 {[%emt 0:03:33]} Nc5 {[%emt 0:02:00]} 21. Bxg7 {[%emt 0:02:50]} Kxg7 {[%emt 0:00:13]} 22. Nd4 {[%emt 0:01:21]} Bf5 {[%emt 0:04:19]} 23. Ra7 {[%emt 0:06:55]} Rb7 {[%emt 0:00:19]} 24. Rxb7 {[%emt 0:00:36]} Nxb7 {[%emt 0:00:35]} 25. Nxb5 {[%emt 0:00:33]} Kg8 {[%emt 0:02:40]} 26. c4 {[%emt 0:05:30]} Qc5 {[%emt 0:02:19]} 27. Qd4 {[%emt 0:02:36]} Qb4 {[%emt 0:00:06]} 28. Qc3 {[%emt 0:01:27]} Qc5 {[%emt 0:00:41]} 29. Re1 {[%emt 0:00:39]} Ra8 {[%emt 0:00:51]} 30. Rxe7 {[%emt 0:00:49]} Na5 {[%emt 0:05:12]} 31. Qf6 {[%emt 0:01:28]} Rf8 {[%emt 0:02:06]} 32. Nd4 {[%emt 0:00:30]} Bc8 {[%emt 0:01:41]} 33. Ne6 {[%emt 0:01:40]} Bxe6 {[%emt 0:00:34]} 34. dxe6 {[%emt 0:15:11]} 1-0

[Event "XVI Memorial Lezcano Montalvo 2024"]
[Site "Gran Canaria"]
[Date "2024.03.29"]
[Round "7.40"]
[White "Matos Guedes, Silverio"]
[Black "Rossello Padron, Carlos"]
[Result "0-1"]
[ECO "B90"]
[WhiteElo "1675"]
[BlackElo "1792"]
[Annotator "NA RC"]
[PlyCount "46"]
[EventDate "2024.03.23"]
[EventType "swiss"]
[EventCountry "ESP"]
[SourceTitle "playchess.com"]
[Source "ChessBase"]
[SourceQuality "1"]
[TimeControl "5400+30"]

1. e4 {[%emt 0:00:02]} c5 {[%emt 0:00:35]} 2. Nf3 {[%emt 0:00:08]} d6 {[%emt 0:03:44]} 3. Nc3 {[%emt 0:00:22]} Nf6 {[%emt 0:00:42]} 4. d4 {[%emt 0:00:13]} cxd4 {[%emt 0:00:09]} 5. Nxd4 {[%emt 0:00:09]} a6 {[%emt 0:00:10]} 6. Bd3 {[%emt 1:32:36]} g6 {[%emt 0:01:01]} 7. Nd5 {[%emt 0:00:00]} Nxd5 {[%emt 0:01:06]} 8. exd5 {[%emt 0:00:00]} Qa5+ {[%emt 0:00:11]} 9. Bd2 {[%emt 0:00:00]} Qxd5 {[%emt 0:00:45]} 10. O-O {[%emt 0:00:00]} Qxd4 {[%emt 0:00:29]} 11. Bc3 {[%emt 0:00:00]} Qb6 {[%emt 0:02:15]} 12. Bxh8 {[%emt 0:00:00]} f6 {[%emt 0:00:06]} 13. Re1 {[%emt 0:00:00]} Nd7 {[%emt 0:01:13]} 14. Qf3 {[%emt 0:00:00]} Ne5 {[%emt 0:01:20]} 15. Rxe5 {[%emt 0:00:00]} dxe5 {[%emt 0:00:45]} 16. Rd1 {[%emt 0:00:00]} Bd7 {[%emt 0:01:50]} 17. Qg3 {[%emt 0:00:00]} O-O-O {[%emt 0:00:24]} 18. Qh4 {[%emt 0:00:00]} Bb5 {[%emt 0:06:00]} 19. c4 {[%emt 0:00:00]} Rd4 {[%emt 0:00:46]} 20. Qxh7 {[%emt 0:00:00]} Bxc4 {[%emt 0:00:47]} 21. Qh3+ {[%emt 0:00:00]} Kb8 {[%emt 0:03:15]} 22. b3 {[%emt 0:00:00]} Be6 {[%emt 0:01:11]} 23. Qf3 {[%emt 0:00:00]} Bg4 {[%emt 0:05:44]} 0-1

[Event "XVI Memorial Lezcano Montalvo 2024"]
[Site "Gran Canaria"]
[Date "2024.03.29"]
[Round "7.41"]
[White "Roca Marrero, Fernando"]
[Black "Cabrera Ramos, Javier"]
[Result "0-1"]
[ECO "A06"]
[WhiteElo "1666"]
[BlackElo "1784"]
[Annotator "NA RC"]
[PlyCount "56"]
[EventDate "2024.03.23"]
[EventType "swiss"]
[EventCountry "ESP"]
[SourceTitle "playchess.com"]
[Source "ChessBase"]
[SourceQuality "1"]
[TimeControl "5400+30"]

1. Nf3 {[%emt 0:00:23]} Nf6 {[%emt 0:00:11]} 2. b3 {[%emt 0:00:27]} d5 {[%emt 0:00:23]} 3. Bb2 {[%emt 0:00:22]} c5 {[%emt 0:00:16]} 4. g3 {[%emt 0:00:27]} Bg4 {[%emt 0:00:47]} 5. Bg2 {[%emt 0:00:02]} Nc6 {[%emt 0:00:11]} 6. d3 {[%emt 0:01:06]} Qd7 {[%emt 0:00:10]} 7. Be5 {[%emt 0:05:16]} Bxf3 {[%emt 0:00:16]} 8. Bxf3 {[%emt 1:26:27]} Nxe5 {[%emt 0:00:09]} 9. Bg2 {[%emt 0:00:00]} h5 {[%emt 0:00:34]} 10. h4 {[%emt 0:00:00]} Nfg4 {[%emt 0:00:17]} 11. O-O {[%emt 0:00:00]} g5 {[%emt 0:00:33]} 12. d4 {[%emt 0:00:00]} Ng6 {[%emt 0:00:32]} 13. Nc3 {[%emt 0:00:00]} e6 {[%emt 0:00:14]} 14. Qd3 {[%emt 0:00:00]} gxh4 {[%emt 0:00:43]} 15. f4 {[%emt 0:00:00]} hxg3 {[%emt 0:00:23]} 16. f5 {[%emt 0:00:00]} exf5 {[%emt 0:01:16]} 17. Nxd5 {[%emt 0:00:00]} Bg7 {[%emt 1:32:05]} 18. c3 {[%emt 0:00:00]} h4 {[%emt 0:00:00]} 19. Rxf5 {[%emt 0:00:00]} O-O {[%emt 0:00:00]} 20. Qf3 {[%emt 0:00:00]} Nh6 {[%emt 0:00:00]} 21. Rh5 {[%emt 0:00:00]} Qg4 {[%emt 0:00:00]} 22. Rf1 {[%emt 0:00:00]} cxd4 {[%emt 0:00:00]} 23. Qxg4 {[%emt 0:00:00]} Nxg4 {[%emt 0:00:00]} 24. Be4 {[%emt 0:00:00]} dxc3 {[%emt 0:00:00]} 25. Bxg6 {[%emt 0:00:00]} Bd4+ {[%emt 0:00:00]} 26. e3 {[%emt 0:00:00]} fxg6 {[%emt 0:00:00]} 27. Rxf8+ {[%emt 0:00:00]} Rxf8 {[%emt 0:00:00]} 28. Rxh4 {[%emt 0:00:00]} c2 {[%emt 0:00:00]} 0-1

[Event "XVI Memorial Lezcano Montalvo 2024"]
[Site "Gran Canaria"]
[Date "2024.03.29"]
[Round "7.42"]
[White "Cabrera Martel, Isaac"]
[Black "Yuan, Yingjie"]
[Result "1/2-1/2"]
[ECO "D00"]
[WhiteElo "1655"]
[BlackElo "1771"]
[Annotator "NA RC"]
[PlyCount "69"]
[EventDate "2024.03.23"]
[EventType "swiss"]
[EventCountry "ESP"]
[SourceTitle "playchess.com"]
[Source "ChessBase"]
[SourceQuality "1"]
[TimeControl "5400+30"]

1. d4 {[%emt 0:00:02]} Nf6 {[%emt 0:00:05]} 2. Nc3 {[%emt 0:00:21]} d5 {[%emt 0:00:22]} 3. Bf4 {[%emt 0:00:08]} e6 {[%emt 0:00:26]} 4. e3 {[%emt 0:00:20]} Bb4 {[%emt 0:01:45]} 5. Bd3 {[%emt 0:00:25]} c5 {[%emt 0:01:00]} 6. dxc5 {[%emt 0:00:17]} Nbd7 {[%emt 0:01:32]} 7. Nf3 {[%emt 0:02:09]} Qa5 {[%emt 0:02:38]} 8. O-O {[%emt 0:00:10]} Bxc3 {[%emt 0:00:38]} 9. bxc3 {[%emt 0:00:05]} Qxc3 {[%emt 0:00:13]} 10. Bd6 {[%emt 0:00:13]} Nxc5 {[%emt 0:05:40]} 11. Nd4 {[%emt 0:01:12]} a6 {[%emt 0:03:33]} 12. Qe2 {[%emt 0:14:56]} Bd7 {[%emt 0:13:22]} 13. Rab1 {[%emt 0:04:22]} Nfe4 {[%emt 0:06:02]} 14. Bxe4 {[%emt 0:27:23]} Nxe4 {[%emt 0:00:50]} 15. Bb4 {[%emt 0:00:43]} Qc7 {[%emt 0:01:45]} 16. Rfc1 {[%emt 0:09:31]} e5 {[%emt 0:06:02]} 17. Nf3 {[%emt 0:03:39]} a5 {[%emt 0:01:06]} 18. Be1 {[%emt 0:01:06]} Rc8 {[%emt 0:01:40]} 19. Qd3 {[%emt 0:02:39]} Bc6 {[%emt 0:11:19]} 20. Qa3 {[%emt 0:04:01]} Ra8 {[%emt 0:12:14]} 21. c4 {[%emt 0:01:34]} dxc4 {[%emt 0:00:55]} 22. Rxc4 {[%emt 0:00:46]} f6 {[%emt 0:03:39]} 23. h3 {[%emt 0:06:46]} Nd6 {[%emt 0:01:50]} 24. Rc5 {[%emt 0:19:42]} b6 {[%emt 0:09:59]} 25. Rc2 {[%emt 0:00:00]} Ne4 {[%emt 0:02:17]} 26. Rbc1 {[%emt 0:00:00]} Nc5 {[%emt 0:00:23]} 27. Nd2 {[%emt 0:00:00]} Qb7 {[%emt 0:07:26]} 28. f3 {[%emt 0:00:00]} Bd5 {[%emt 0:05:49]} 29. Bf2 {[%emt 0:00:00]} Bf7 {[%emt 0:00:00]} 30. Ne4 {[%emt 0:00:00]} O-O {[%emt 0:00:00]} 31. Nxc5 {[%emt 0:00:00]} bxc5 {[%emt 0:00:00]} 32. Qxc5 {[%emt 0:00:00]} Qb4 {[%emt 0:00:04]} 33. Qxb4 {[%emt 0:00:00]} axb4 {[%emt 0:00:07]} 34. Be1 {[%emt 0:00:00]} Rfb8 {[%emt 0:00:30]} 35. Rb2 {[%emt 0:05:30]} 1/2-1/2

[Event "XVI Memorial Lezcano Montalvo 2024"]
[Site "Gran Canaria"]
[Date "2024.03.30"]
[Round "8.1"]
[White "Larino Nieto, David"]
[Black "Akhvlediani, Irakli"]
[Result "1-0"]
[ECO "A01"]
[WhiteElo "2365"]
[BlackElo "2356"]
[Annotator "RC"]
[PlyCount "65"]
[EventDate "2024.03.23"]
[EventType "swiss"]
[EventCountry "ESP"]
[SourceTitle "playchess.com"]
[Source "ChessBase"]
[SourceQuality "1"]
[TimeControl "5400+30"]

1. e3 {[%emt 0:02:09]} c5 {[%emt 0:02:03]} 2. b3 {[%emt 0:00:10]} Nc6 {[%emt 0:01:21]} 3. Bb2 {[%emt 0:00:07]} e5 {[%emt 0:00:23]} 4. Bb5 {[%emt 0:01:10]} Nge7 {[%emt 0:02:17]} 5. Nf3 {[%emt 0:09:36]} d6 {[%emt 0:17:59]} 6. d4 {[%emt 0:00:41]} Qa5+ {[%emt 0:01:40]} 7. Nc3 {[%emt 0:00:20]} cxd4 {[%emt 0:00:15]} 8. exd4 {[%emt 0:00:36]} a6 {[%emt 0:00:09]} 9. Bxc6+ {[%emt 0:09:21]} Nxc6 {[%emt 0:00:14]} 10. O-O {[%emt 0:00:06]} Bg4 {[%emt 0:15:13]} 11. h3 {[%emt 0:00:24]} Bh5 {[%emt 0:05:29]} 12. dxe5 {[%emt 0:00:07]} O-O-O {[%emt 0:16:39]} 13. Qd3 {[%emt 0:08:11]} Bg6 {[%emt 0:01:50]} 14. Qc4 {[%emt 0:00:17]} dxe5 {[%emt 0:04:02]} 15. a3 {[%emt 0:00:24]} Qc5 {[%emt 0:01:16]} 16. Qe2 {[%emt 0:01:43]} Nd4 {[%emt 0:02:31]} 17. Nxd4 {[%emt 0:00:29]} exd4 {[%emt 0:00:03]} 18. Na4 {[%emt 0:25:54]} Qc6 {[%emt 0:01:29]} 19. c4 {[%emt 0:00:20]} Bd6 {[%emt 0:12:39]} 20. Bxd4 {[%emt 0:02:59]} Bc7 {[%emt 0:00:20]} 21. Rfd1 {[%emt 0:03:53]} Rhe8 {[%emt 0:01:19]} 22. Be3 {[%emt 0:00:19]} Be4 {[%emt 0:01:59]} 23. Nc5 {[%emt 0:12:31]} Rxd1+ {[%emt 0:06:29]} 24. Rxd1 {[%emt 0:00:52]} f5 {[%emt 0:02:09]} 25. Nxe4 {[%emt 0:09:24]} Qxe4 {[%emt 0:00:01]} 26. Qh5 {[%emt 0:00:33]} f4 {[%emt 0:02:45]} 27. Ba7 {[%emt 0:00:02]} b6 {[%emt 0:00:50]} 28. c5 {[%emt 0:00:33]} b5 {[%emt 0:00:31]} 29. Bb6 {[%emt 0:00:56]} Qe2 {[%emt 0:00:33]} 30. Qd5 {[%emt 0:00:36]} Bxb6 {[%emt 0:00:02]} 31. Qa8+ {[%emt 0:00:55]} Kc7 {[%emt 0:00:05]} 32. cxb6+ {[%emt 0:00:03]} Kxb6 {[%emt 0:00:02]} 33. Rd6+ {[%emt 0:00:08]} 1-0

[Event "XVI Memorial Lezcano Montalvo 2024"]
[Site "Gran Canaria"]
[Date "2024.03.30"]
[Round "8.3"]
[White "Kovchan, Alexander"]
[Black "Tutisani, Noe"]
[Result "1/2-1/2"]
[ECO "C78"]
[WhiteElo "2477"]
[BlackElo "2405"]
[Annotator "TA"]
[PlyCount "25"]
[EventDate "2024.03.23"]
[EventType "swiss"]
[EventCountry "ESP"]
[SourceTitle "playchess.com"]
[Source "ChessBase"]
[SourceQuality "1"]
[TimeControl "5400+30"]

{[%evp 20,25,40,39,34,41,38,36]} 1. e4 {[%emt 0:00:06]} e5 {[%emt 0:00:12]} 2. Nf3 {[%emt 0:00:09]} Nc6 {[%emt 0:00:05]} 3. Bb5 {[%emt 0:00:25][%cal Bf1b5,Bb5a4,Ba4b3][%mdl 32]} a6 {[%emt 0:00:05]} 4. Ba4 {[%emt 0:00:10]} Nf6 {[%emt 0:00:06]} 5. O-O {[%emt 0:00:21]} b5 {[%emt 0:00:08]} 6. Bb3 {[%emt 0:00:07]} Bc5 {[%emt 0:00:05]} 7. c3 {[%emt 0:01:42]} d6 {[%emt 0:00:18]} 8. a4 {[%emt 0:02:26]} Rb8 {[%emt 0:00:49]} 9. d4 {[%emt 0:01:17]} Bb6 {[%emt 0:00:07]} 10. axb5 {[%emt 0:01:48]} axb5 {[%emt 0:00:05]} 11. Na3 {[%emt 0:00:40] White is slightly better.} O-O {[%emt 0:00:07]} 12. Nxb5 {[%emt 0:01:16]} Bg4 {[%emt 0:00:10]} 13. Bc2 {[%emt 0:00:35] Weighted Error Value: White=0.00 (flawless) /Black=0.00 (flawless) .  OK:         	White=2     	Black=1} 1/2-1/2

[Event "XVI Memorial Lezcano Montalvo 2024"]
[Site "Gran Canaria"]
[Date "2024.03.30"]
[Round "8.4"]
[White "Loiacono, Leonardo"]
[Black "Lianes Garcia, Marcos"]
[Result "1/2-1/2"]
[ECO "C59"]
[WhiteElo "2316"]
[BlackElo "2398"]
[Annotator "TA"]
[PlyCount "110"]
[EventDate "2024.03.23"]
[EventType "swiss"]
[EventCountry "ESP"]
[SourceTitle "playchess.com"]
[Source "ChessBase"]
[SourceQuality "1"]
[TimeControl "5400+30"]

{[%evp 17,110,7,81,91,81,77,87,95,95,85,81,83,91,74,79,91,79,70,82,32,68,-10,0,0,0,-52,0,-29,-25,-21,-37,-52,-55,-66,-65,-47,-60,-77,-68,-76,-74,-76,-47,-50,-75,-57,0,0,65,20,91,116,98,124,125,50,50,0,0,0,0,-13,-28,-65,-14,-16,-14,-13,-16,-29,0,0,0,0,0,0,0,-8,-8,-8,-8,-8,-8,-8,-8,-8,-8,-8,-8,-8,-8,-8,-8,-8,-8]} 1. e4 {[%emt 0:00:09]} e5 {[%emt 0:00:36]} 2. Nf3 {[%emt 0:00:26]} Nc6 {[%emt 0:01:25]} 3. Bc4 {[%emt 0:00:38]} Nf6 {[%emt 0:03:06]} 4. Ng5 {[%emt 0:00:48]} d5 {[%emt 0:00:27]} 5. exd5 {[%emt 0:00:05]} Na5 {[%emt 0:00:35]} 6. Bb5+ {[%emt 0:00:06]} c6 {[%emt 0:00:25]} 7. dxc6 {[%emt 0:00:05]} bxc6 {[%emt 0:00:06]} 8. Be2 {[%emt 0:00:03]} h6 {[%emt 0:11:58]} 9. Nf3 {[%emt 0:00:05][%cal Bg5f3,Bf3d2,Bd2e4][%mdl 32]} Bd6 {[%emt 0:02:29]} (9... e4 $11 10. Ne5 Bc5) 10. d3 $16 {[%emt 0:11:34]} O-O {[%emt 0:01:25]} 11. Nc3 {[%emt 0:00:15]} c5 {[%emt 0:05:07]} 12. Nd2 {[%emt 0:04:29] White is better.} Rb8 {[%emt 0:00:50]} 13. Nde4 {[%emt 0:00:26]} Nc6 {[%emt 0:05:17]} 14. O-O {[%emt 0:14:47]} Be7 {[%emt 0:03:40]} 15. Nxf6+ {[%emt 0:11:33]} Bxf6 {[%emt 0:00:23]} 16. Bg4 {[%emt 0:00:05]} Ba6 {[%emt 0:04:59]} 17. Bf3 {[%emt 0:09:19]} Nd4 {[%emt 0:01:38]} 18. Be4 {[%emt 0:00:05]} (18. Bd5 $16) 18... Be7 {[%emt 0:05:37]} 19. Qh5 {[%emt 0:29:40]} ({White should play} 19. b3 $14) 19... f5 $11 {[%emt 0:19:58]} (19... Nxc2 $2 20. Bxh6 Qd6 (20... gxh6 21. Qf5 Re8 22. Qh7+ Kf8 23. Qh8#) (20... Nxa1 $2 21. Bxg7 f5 22. Qg6 $18) 21. Bxg7 $18) 20. Bd5+ {[%emt 0:00:03]} Kh7 {[%emt 0:00:07]} 21. Bb3 {[%emt 0:05:49]} (21. Qd1 $11) 21... Bb7 {[%emt 0:04:02]} (21... Rb6 $1 $15 22. f3 Rg6) 22. f4 {[%emt 0:02:21]} Bd6 {[%emt 0:12:33]} 23. fxe5 {[%emt 0:01:31]} Bxe5 {[%emt 0:00:14]} 24. Bd2 {[%emt 0:00:20]} Qd6 {[%emt 0:00:46][%mdl 1024] ...f4 is the strong threat. Black has compensation.} 25. Rae1 {[%emt 0:02:37]} Rbe8 {[%emt 0:03:01]} 26. Kh1 {[%emt 0:00:05]} Bc6 {[%emt 0:01:25]} 27. Qh3 {[%emt 0:02:27]} Rf6 {[%emt 0:01:34] aiming for ...Nxb3.} 28. Ba4 {[%emt 0:00:21]} Bxa4 {[%emt 0:02:28]} 29. Nxa4 {[%emt 0:00:03]} Nxc2 {[%emt 0:00:51]} 30. Rc1 {[%emt 0:00:15]} Nb4 {[%emt 0:01:31]} 31. Nxc5 {[%emt 0:00:58]} Nxa2 {[%emt 0:01:25]} ({Better is} 31... Bxb2 $15 32. Rc4 (32. Bxb4 $2 {perishes.} Bxc1 33. a3 Be3 $19) 32... Nc6) 32. Rc2 {[%emt 0:01:09][%cal Ob2b4]} Rb8 {[%emt 0:01:16]} (32... Bf4 $11 33. Qh5 (33. Bxf4 Qxf4 34. g3 Qd6 $17) 33... Rff8) 33. Rxf5 {[%emt 0:01:13] Ne4 would now be deadly.} Rbf8 {[%emt 0:01:16]} (33... Kh8 $11 34. Rxf6 Qxf6) 34. g4 $1 $16 {[%emt 0:01:09]} Rxf5 35. gxf5 {[%emt 0:00:02] Strongly threatening Ne6.} Rb8 {[%emt 0:03:34] [#]} 36. Ne4 {[%emt 0:01:04]} (36. Qg2 $1 $16) 36... Qd7 $1 $14 {[%emt 0:00:20][%cal Oa2b4] [#]} 37. b3 {[%emt 0:01:35]} Nb4 $11 {[%emt 0:00:50]} 38. Bxb4 {[%emt 0:00:10]} Rxb4 {[%emt 0:00:01]} 39. Kg2 {[%emt 0:01:21]} Rxb3 {[%emt 0:00:52][%cal Oa7a5]} 40. Nc5 {[%emt 0:00:20]} Qc6+ {[%emt 0:00:32]} (40... Qc7 $15) 41. Qf3 {[%emt 0:00:26]} Rb6 {[%emt 0:00:10]} 42. Qxc6 {[%emt 0:00:09]} Rxc6 {[%emt 0:00:04][%mdl 4096] Endgame. KRB-KRN} 43. Rc4 $1 {[%emt 0:00:03] Prevents Bd4} Rf6 {[%emt 0:01:20][%cal Bc6f6,Bf6f5,Bf5g5][%mdl 32]} (43... a5 $5) 44. d4 {[%emt 0:00:11] The position is equal.} Bf4 {[%emt 0:00:18]} 45. Ra4 {[%emt 0:01:01]} Rxf5 {[%emt 0:00:50]} 46. Rxa7 {[%emt 0:00:05]} Rg5+ {[%emt 0:00:12]} 47. Kf3 {[%emt 0:00:13]} Bxh2 {[%emt 0:00:23]} 48. Ne6 {[%emt 0:00:07]} Rg1 {[%emt 0:01:20]} 49. Rxg7+ {[%emt 0:00:16]} Rxg7 {[%emt 0:00:39]} 50. Nxg7 {[%emt 0:00:04]} Kxg7 {[%emt 0:00:04] KB-KP} 51. Kg2 {[%emt 0:00:02]} Bd6 {[%emt 0:00:09]} 52. d5 {[%emt 0:00:04]} Kf6 {[%emt 0:00:07]} 53. Kh3 {[%emt 0:00:03]} Ke5 {[%emt 0:00:08]} 54. Kg2 {[%emt 0:00:11]} Ke4 {[%emt 0:00:20]} 55. Kh1 {[%emt 0:00:55]} Kxd5 {[%emt 0:01:24] Weighted Error Value: White=0.15 (very precise) /Black=0.15 (very precise) .  Mistake:       	White=5     	Black=5      Inaccurate:     	White=3     	Black=2      OK:         	White=17    	Black=16     Best:        	White=4     	Black=4      Strong:       	White=2     	Black=1} 1/2-1/2

[Event "XVI Memorial Lezcano Montalvo 2024"]
[Site "Gran Canaria"]
[Date "2024.03.30"]
[Round "8.5"]
[White "Calzetta Ruiz, Monica"]
[Black "Kurajica, Bojan"]
[Result "1/2-1/2"]
[ECO "B47"]
[WhiteElo "2239"]
[BlackElo "2444"]
[Annotator "TA"]
[PlyCount "73"]
[EventDate "2024.03.23"]
[EventType "swiss"]
[EventCountry "ESP"]
[SourceTitle "playchess.com"]
[Source "ChessBase"]
[SourceQuality "1"]
[TimeControl "5400+30"]

{[%evp 9,73,36,40,15,25,40,51,35,38,47,43,47,47,39,83,87,78,84,86,45,54,21,116,106,130,133,156,164,166,179,152,171,178,177,185,185,178,171,338,207,192,26,27,24,28,28,17,20,22,29,19,28,18,29,16,0,18,0,0,0,0,0,0,0,0,0]} 1. e4 {[%emt 0:00:03]} c5 {[%emt 0:02:45]} 2. Nf3 {[%emt 0:00:10]} Nc6 {[%emt 0:00:08]} 3. d4 {[%emt 0:00:05]} cxd4 {[%emt 0:00:04]} 4. Nxd4 {[%emt 0:00:05]} Qc7 {[%emt 0:00:11]} 5. Nc3 {[%emt 0:00:49]} e6 $1 {[%emt 0:00:06]} 6. Qd3 {[%emt 0:00:10]} a6 {[%emt 0:00:33]} 7. Nxc6 {[%emt 0:00:06]} bxc6 {[%emt 0:02:53]} 8. Qg3 {[%emt 0:00:18] White is slightly better.} Qxg3 {[%emt 0:03:35]} 9. hxg3 {[%emt 0:00:06][%cal Bh2g3,Bg3g4,Bg4g5][%mdl 32]} d5 {[%emt 0:00:39]} 10. g4 {[%emt 0:09:47]} Bb7 {[%emt 0:16:21]} 11. Bd3 {[%emt 0:08:49]} e5 {[%emt 0:08:56]} 12. Bd2 {[%emt 0:02:11]} Nf6 {[%emt 0:09:14]} 13. g5 {[%emt 0:02:38]} Nd7 {[%emt 0:00:49]} 14. O-O-O {[%emt 0:02:49] White is more active.} Nc5 {[%emt 0:07:58]} 15. Rh2 {[%emt 0:20:21]} Ne6 {[%emt 0:25:18]} (15... d4 $11 {remains equal.} 16. Nb1 Bc8) 16. Rdh1 $16 {[%emt 0:01:47]} Be7 {[%emt 0:04:41]} 17. Rxh7 {[%emt 0:00:43]} Rg8 {[%emt 0:00:19] [#]} 18. g6 $1 {[%emt 0:02:47][%mdl 512]} fxg6 {[%emt 0:00:05]} 19. exd5 {[%emt 0:00:04]} cxd5 {[%emt 0:00:04]} 20. Bxg6+ {[%emt 0:00:25]} Kd7 {[%emt 0:00:03]} 21. Bf7 {[%emt 0:10:57]} Rgf8 {[%emt 0:00:12]} 22. Bxe6+ {[%emt 0:00:06]} Kxe6 {[%emt 0:00:04]} 23. Rxg7 {[%emt 0:00:05]} Rxf2 $2 {[%emt 0:00:21]} (23... Rae8 {keeps fighting.} 24. f3 d4) 24. Rh6+ {[%emt 0:22:46]} Rf6 {[%emt 0:00:10][%cal Bf2f6,Bf6h6,Bh6h1][%mdl 32] [#]} 25. Bg5 {[%emt 0:00:04]} (25. Rxe7+ $1 $18 Kxe7 26. Bg5) 25... Rxh6 $11 {[%emt 0:01:29]} 26. Rxe7+ {[%emt 0:00:03]} ({Much weaker is} 26. Bxh6 Rh8 27. Bg5 Bxg5+ 28. Rxg5 d4 $11) 26... Kd6 {[%emt 0:00:10]} 27. Rxb7 {[%emt 0:00:05]} Rh1+ {[%emt 0:01:39]} 28. Kd2 {[%emt 0:00:57]} Rg8 {[%emt 0:01:30][%cal Od6c6]} 29. Rb6+ {[%emt 0:03:34]} Kd7 {[%emt 0:00:05]} 30. Nxd5 {[%emt 0:01:16] aiming for Nf6+.} Rxg5 {[%emt 0:00:06][%mdl 4096] Endgame. KRR-KRN} 31. Ne3 {[%emt 0:00:03]} a5 {[%emt 0:01:15]} 32. a4 {[%emt 0:04:40] The position is equal.} Rh4 {[%emt 0:00:38]} 33. b3 {[%emt 0:00:11]} Rd4+ {[%emt 0:01:09]} 34. Ke2 {[%emt 0:00:47]} Re4 {[%emt 0:03:52][%cal Og5g3] Hoping for ...Rg3!} 35. Kd3 {[%emt 0:00:29]} Rd4+ {[%emt 0:02:40]} 36. Ke2 $1 {[%emt 0:00:03]} Re4 {[%emt 0:01:30][%cal Og5g3] White must now prevent ...Rg3!} 37. Kd3 {[%emt 0:00:05] Black defended with fortune.   Weighted Error Value: White=0.17 (very precise) /Black=0.16 (very precise) .  Missed win:     	White=1     	---        Mistake:       	---       	Black=2      Inaccurate:     	White=3     	Black=1      OK:         	White=16    	Black=9      Best:        	White=5     	Black=8      Strong:       	White=1     	---} 1/2-1/2